bitfinex/quotes_ETHUSD_20250216
["timestamp","ask_amount","ask_price","bid_price","bid_amount"]
[1739731821137,0.7533,2680.8,2680.7,3.73036]
[1739731821879,0.7533,2681.3,2680.9,3.73006]
[1739731822249,0.7533,2681.3,2681.0,3.72985]
[1739731824047,0.7533,2681.3,2680.9,3.73006]
[1739731824245,0.18705636,2681.9,2680.6,7.01039]
[1739731824246,0.7877,2681.1,2680.6,7.01039]
[1739731824678,0.7877,2681.1,2680.8,3.73015]
[1739731824978,0.7877,2681.1,2680.6,5.23285377]
[1739731824979,0.7877,2681.4,2681.0,3.72987]
[1739731825177,0.7877,2681.4,2681.3,3.72953]
[1739731826072,0.7877,2681.4,2681.2,3.72961]
[1739731827689,0.7877,2681.6,2681.5,3.72925]
[1739731827985,0.7877,2681.6,2681.4,3.72927]
[1739731828179,0.7877,2681.6,2681.5,3.72925]
[1739731828347,0.7877,2681.9,2681.5,3.72925]
[1739731828673,0.7877,2681.9,2681.4,4.475247]
[1739731828879,4.51641,2681.9,2681.4,4.475247]
[1739731829256,0.7877,2681.9,2681.5,3.72916]
[1739731829459,0.7877,2681.9,2681.5,4.5496007]
[1739731829661,4.51644,2681.9,2681.5,0.8204407]
[1739731829980,0.7877,2681.9,2681.5,3.72918]
[1739731830184,0.7877,2681.9,2681.6,3.72909]
[1739731830560,0.7877,2681.9,2681.4,3.72938]
[1739731830865,4.51644,2681.9,2681.4,3.72938]
[1739731831056,0.7877,2681.9,2681.5,3.72925]
[1739731831392,0.7877,2681.9,2681.6,0.745864]
[1739731832198,0.7877,2681.9,2681.6,4.474964]
[1739731832493,0.06621496,2681.8,2681.6,0.745864]
[1739731832705,0.06621496,2681.8,2681.7,3.72897]
[1739731832859,0.7877,2682.1,2681.7,3.72897]
[1739731833060,0.7877,2682.1,2681.8,3.72876]
[1739731833276,0.7877,2682.3,2681.8,3.72876]
[1739731833692,4.51586,2682.3,2681.6,11.73994769]
[1739731833875,3.72836,2682.2,2681.7,3.72896]
[1739731834285,4.51586,2682.3,2681.7,3.72896]
[1739731834800,3.72829,2682.2,2681.7,3.72896]
[1739731835465,3.72829,2682.2,2681.7,4.48645663]
[1739731835797,3.72886,2681.8,2681.6,8.87]
[1739731835964,0.7877,2681.9,2681.6,8.87]
[1739731836298,3.72897,2681.7,2681.6,8.87]
[1739731836516,0.7877,2681.5,2681.1,0.74108607]
[1739731836713,0.7877,2681.5,2681.1,4.47087607]
[1739731836925,0.7877,2681.5,2681.2,1.78976461]
[1739731837095,0.7877,2681.5,2681.2,5.51931461]
[1739731837277,0.06521904,2681.4,2681.2,5.51931461]
[1739731837678,0.7877,2681.5,2681.0,12.59985]
[1739731837882,0.06517204,2681.3,2681.0,13.33399888]
[1739731838137,0.7877,2681.5,2681.0,8.87]
[1739731838281,4.51751,2681.1,2681.0,8.87]
[1739731838481,4.51751,2681.1,2680.5,4.01054]
[1739731838696,4.51751,2681.1,2680.5,4.587371]
[1739731838912,4.51751,2681.1,2680.6,3.0]
[1739731839097,3.72996,2681.0,2680.6,3.0]
[1739731839314,0.7877,2681.1,2680.6,3.0]
[1739731839514,0.06476682,2680.9,2680.6,3.0]
[1739731839715,4.51761,2681.1,2680.7,0.7587371]
[1739731840015,4.51761,2681.1,2680.6,3.0]
[1739731840208,0.06481384,2681.0,2680.6,3.0]
[1739731841025,4.51761,2681.1,2680.6,3.0]
[1739731841333,4.51761,2681.1,2680.8,3.73022]
[1739731841334,0.06476682,2680.9,2680.8,3.73022]
[1739731841476,0.06481384,2681.0,2680.9,3.73009]
[1739731841822,0.7506,2681.6,2680.9,3.73009]
[1739731841823,0.7506,2681.6,2681.0,3.72987]
[1739731842028,0.06452358,2681.5,2681.0,3.72987]
[1739731842326,0.06452358,2681.5,2680.9,12.59999]
[1739731842484,0.06452358,2681.5,2681.0,3.72994]
[1739731842686,0.06452358,2681.5,2681.1,3.7298]
[1739731843286,0.06452358,2681.5,2681.0,1.632993]
[1739731843801,4.47974,2681.6,2681.1,3.72977]
[1739731844134,0.06460256,2681.5,2681.1,3.72977]
[1739731845333,0.06460256,2681.5,2681.0,2.37296001]
[1739731845497,0.06460256,2681.5,2681.1,5.227017]
[1739731845708,0.06460256,2681.5,2681.2,3.7296]
[1739731845907,0.7506,2681.6,2681.2,3.7296]
[1739731846442,0.06339185,2681.5,2681.2,3.7296]
[1739731846592,0.06339185,2681.5,2681.2,3.72958]
[1739731846929,0.7506,2681.6,2681.3,4.25586703]
[1739731847088,0.7506,2681.6,2681.3,0.52641703]
[1739731847288,0.06342345,2681.5,2681.3,0.52641703]
[1739731847726,0.06342345,2681.5,2681.3,4.25593703]
[1739731848087,0.06342345,2681.5,2681.4,6.76668131]
[1739731848300,0.7506,2681.9,2681.6,3.72905]
[1739731848598,0.7506,2681.9,2681.6,3.76632694]
[1739731848795,0.7506,2682.2,2681.8,3.72876]
[1739731849052,3.72878,2681.9,2681.4,4.3892556]
[1739731849259,0.7506,2681.8,2681.5,0.28]
[1739731849551,4.47856,2682.5,2681.9,3.72858]
[1739731849717,3.72805,2682.4,2681.9,3.72858]
[1739731850331,4.47856,2682.5,2681.9,7.4572]
[1739731850747,4.47856,2682.5,2682.0,3.72853]
[1739731850907,4.47856,2682.5,2681.9,3.72858]
[1739731851101,4.47856,2682.5,2681.9,5.361328]
[1739731851304,0.05751982,2682.4,2681.9,9.089948]
[1739731851506,0.05751982,2682.4,2682.2,3.72826]
[1739731852267,0.05751982,2682.4,2682.2,7.45645]
[1739731852551,0.1477337,2682.6,2682.5,3.72786]
[1739731852705,0.1477337,2682.6,2682.5,4.18743386]
[1739731853229,0.1477337,2682.6,2682.5,0.45957386]
[1739731853635,0.20555316,2682.6,2682.5,0.45957386]
[1739731853801,0.15555316,2682.6,2682.5,0.45957386]
[1739731854152,0.15555316,2682.6,2682.3,0.28]
[1739731854657,0.8477725,2682.5,2682.1,1.5608216]
[1739731854951,0.8477725,2682.5,2682.2,3.0]
[1739731855149,0.8477725,2682.5,2682.2,3.72825]
[1739731855352,0.8477725,2682.5,2682.1,8.2892116]
[1739731855554,4.5757225,2682.5,2682.2,2.08876816]
[1739731855846,0.8477725,2682.5,2682.0,8.87]
[1739731856148,0.8477725,2682.5,2682.1,3.72833]
[1739731856352,4.5756625,2682.5,2682.0,8.87]
[1739731856554,4.5756625,2682.5,2682.0,11.35628257]
[1739731856737,4.5756625,2682.5,2682.0,15.08475257]
[1739731857052,0.8477725,2682.5,2682.1,3.72834]
[1739731858255,0.8477725,2682.5,2682.0,3.23944217]
[1739731858411,0.0977337,2682.6,2681.9,8.87]
[1739731858412,3.72835,2682.2,2681.9,8.87]
[1739731858614,0.84593412,2682.1,2681.8,3.0]
[1739731858929,0.05593412,2682.1,2682.0,3.72856]
[1739731859133,4.51801,2682.4,2681.9,6.59854769]
[1739731859324,0.79,2682.4,2681.9,6.59854769]
[1739731859519,0.05602807,2682.3,2681.9,7.65937408]
[1739731859932,0.05602807,2682.3,2682.0,3.72845]
[1739731860238,0.05381139,2682.2,2682.1,3.72839]
[1739731860441,0.79,2682.5,2682.1,3.72839]
[1739731860637,0.05381139,2682.2,2681.9,3.72869]
[1739731860831,3.72809,2682.4,2682.0,0.74594062]
[1739731861134,0.05385836,2682.3,2682.0,3.72854]
[1739731861440,4.51787,2682.5,2682.0,3.72854]
[1739731861607,0.05381139,2682.2,2682.0,3.72854]
[1739731861808,4.51788,2682.5,2681.8,7.45948617]
[1739731862051,3.72839,2682.2,2681.8,3.0]
[1739731862338,3.72836,2682.2,2681.8,3.0]
[1739731862509,3.72863,2682.0,2681.4,18.20825]
[1739731862709,4.5703987,2682.1,2681.6,3.0]
[1739731863030,3.72856,2682.0,2681.6,3.0]
[1739731863225,3.72885,2681.8,2681.6,3.0]
[1739731863533,0.05166077,2681.7,2681.3,7.35229769]
[1739731863703,0.05166077,2681.7,2681.5,3.0]
[1739731863906,3.7287,2681.9,2681.5,4.41188669]
[1739731864139,0.05153466,2681.6,2681.5,4.41188669]
[1739731864443,3.7287,2681.9,2681.5,4.41188669]
[1739731864645,8.24697,2682.1,2681.6,3.72911]
[1739731864820,3.72856,2682.0,2681.6,3.72911]
[1739731865018,3.72871,2681.9,2681.5,4.41188669]
[1739731865326,3.72871,2681.9,2681.5,3.0]
[1739731866120,0.79,2681.7,2681.1,8.87]
[1739731866333,3.72918,2681.6,2681.1,12.59973]
[1739731866506,0.79,2681.3,2680.8,3.73012]
[1739731866706,0.79,2681.3,2680.9,3.73001]
[1739731866707,0.29,2681.3,2680.9,3.73001]
[1739731866946,0.29,2681.3,2681.0,3.72994]
[1739731867152,0.29,2681.3,2681.1,0.745995]
[1739731867316,0.05104599,2681.2,2680.9,3.73001]
[1739731867519,0.29,2681.3,2680.9,3.73001]
[1739731867724,0.05099898,2681.1,2680.9,3.73001]
[1739731867932,0.29,2681.3,2680.9,3.73001]
[1739731868161,3.72914,2681.6,2680.7,26.83724769]
[1739731868162,3.78090197,2681.0,2680.7,8.367]
[1739731868336,2.86994769,2681.7,2680.3,3.73089]
[1739731868337,3.73015,2680.9,2680.3,3.73089]
[1739731868523,3.7305,2680.6,2680.5,0.75906876]
[1739731868728,3.73039,2680.7,2680.1,8.87]
[1739731868924,3.73039,2680.7,2680.2,1.260123]
[1739731869130,3.73059,2680.6,2680.1,3.0]
[1739731869449,0.05025992,2680.6,2680.0,3.73125]
[1739731869623,0.8312,2680.5,2680.0,3.73125]
[1739731869829,0.05000127,2680.4,2680.0,3.73125]
[1739731870037,0.05000127,2680.4,2680.0,4.91499946]
[1739731871330,0.05000127,2680.4,2680.0,1.18374946]
[1739731871331,3.78081127,2680.4,2680.0,1.18374946]
[1739731871533,0.05000127,2680.4,2680.0,1.18374946]
[1739731872048,4.56194,2680.5,2680.0,1.18374946]
[1739731872249,4.56194,2680.5,2680.0,4.91507946]
[1739731872547,0.8312,2680.5,2680.1,8.32686795]
[1739731872713,3.73024,2680.8,2680.3,3.73082]
[1739731872919,0.04954602,2680.4,2680.3,3.73082]
[1739731873121,3.73024,2680.8,2680.3,3.73082]
[1739731873317,0.04954602,2680.4,2680.1,8.32685795]
[1739731873515,3.73018,2680.9,2680.1,8.32685795]
[1739731873516,3.73018,2680.9,2680.2,4.68204074]
[1739731873750,3.73018,2680.9,2680.1,4.59573795]
[1739731873751,0.04949897,2680.3,2679.9,12.60141]
[1739731873955,3.73088,2680.4,2679.9,6.73141]
[1739731874317,0.04949897,2680.3,2679.9,6.73141]
[1739731874523,0.04949897,2680.3,2679.9,6.73138]
[1739731875438,0.8312,2680.5,2679.9,3.0]
[1739731875641,0.8312,2680.5,2680.0,4.46876046]
[1739731875830,0.04969105,2680.4,2680.1,3.73111]
[1739731876030,0.04969105,2680.4,2680.2,3.73098]
[1739731876878,0.04969105,2680.4,2680.1,3.73119]
[1739731877840,0.04969105,2680.4,2680.1,3.73111]
[1739731878039,0.04969105,2680.4,2680.1,4.47806005]
[1739731878263,0.04969105,2680.4,2680.0,3.0]
[1739731878561,0.04969105,2680.4,2680.0,6.73122]
[1739731878742,0.04969105,2680.4,2680.1,3.73111]
[1739731878931,0.04969105,2680.4,2679.9,0.03730884]
[1739731879132,0.04969105,2680.4,2680.0,3.7313]
[1739731879673,3.78048105,2680.4,2680.0,3.73132]
[1739731879965,3.73109,2680.2,2679.7,3.73166]
[1739731880263,3.73109,2680.2,2679.7,6.73166]
[1739731880462,0.04919275,2680.1,2679.7,7.47007331]
[1739731881269,4.56255,2680.0,2679.5,3.73202]
[1739731881464,0.8312,2680.0,2679.5,3.73202]
[1739731881783,0.88030665,2680.0,2679.6,3.73187]
[1739731882671,0.88030665,2680.0,2679.6,3.73182]
[1739731882846,0.8312,2680.2,2679.8,3.73155]
[1739731883042,0.04915372,2680.1,2679.9,3.73141]
[1739731883268,0.04915372,2680.1,2679.8,3.73155]
[1739731883472,0.8312,2680.2,2679.8,4.104675]
[1739731883643,0.04910665,2680.0,2679.6,3.73182]
[1739731883843,0.04910665,2680.0,2679.6,3.73181]
[1739731884049,3.73135,2680.0,2679.6,3.73181]
[1739731884360,0.04905958,2679.9,2679.6,3.73181]
[1739731884747,4.56233,2680.2,2679.6,3.73181]
[1739731885052,8.29349,2680.2,2679.7,3.73173]
[1739731885435,3.78036372,2680.1,2679.7,3.73173]
[1739731886334,0.04915372,2680.1,2679.5,3.0]
[1739731886674,3.73127,2680.1,2679.5,6.73192]
[1739731886876,0.04895048,2680.0,2679.6,3.73186]
[1739731887548,3.78031048,2680.0,2679.6,3.73186]
[1739731888871,3.78031048,2680.0,2679.5,6.732]
[1739731889073,3.78031048,2680.0,2679.2,3.73238]
[1739731889074,3.73187,2679.7,2679.2,3.73238]
[1739731889368,3.73176,2679.7,2679.2,3.73238]
[1739731889577,4.52472,2679.8,2679.2,3.73238]
[1739731889578,0.04912192,2679.6,2679.2,3.73238]
[1739731889948,3.7318,2679.7,2679.2,3.73238]
[1739731890150,0.04907484,2679.5,2679.2,3.73238]
[1739731890349,3.73194,2679.6,2679.2,3.0]
[1739731890572,0.04902776,2679.4,2679.2,3.0]
[1739731890775,7.46364,2679.7,2679.2,8.44354344]
[1739731890978,3.7318,2679.7,2679.2,8.44354344]
[1739731891158,0.04912192,2679.6,2679.2,8.44354344]
[1739731891359,3.7318,2679.7,2679.2,6.73243]
[1739731892162,3.73176,2679.7,2679.2,6.73243]
[1739731892363,7.46362,2679.7,2679.2,6.73243]
[1739731892687,0.04912192,2679.6,2679.2,6.73243]
[1739731892862,3.78104192,2679.6,2679.2,6.73243]
[1739731893051,3.73205,2679.5,2679.2,3.0]
[1739731893249,3.73205,2679.5,2678.9,3.14994769]
[1739731893250,3.78128776,2679.4,2678.9,3.73281]
[1739731893483,0.7931,2679.3,2678.9,4.58080477]
[1739731893683,0.84144688,2679.3,2678.9,4.58080477]
[1739731893881,0.04834688,2679.3,2679.0,6.73273]
[1739731894047,0.7931,2679.6,2679.0,3.0]
[1739731894253,3.73224,2679.4,2678.9,3.73279]
[1739731894486,0.04834688,2679.3,2678.9,5.67691297]
[1739731894694,0.04834688,2679.3,2678.9,4.81407066]
[1739731894861,0.7931,2679.6,2679.3,3.73227]
[1739731895201,0.0483816,2679.5,2679.1,3.73253]
[1739731895348,0.0483816,2679.5,2679.1,4.96045407]
[1739731896169,3.7804216,2679.5,2679.0,3.73264]
[1739731896493,4.52939,2679.3,2678.8,9.81485974]
[1739731896851,0.04824035,2679.2,2678.9,3.73283]
[1739731897087,0.797,2679.3,2678.8,13.54775974]
[1739731897291,0.04819326,2679.1,2678.8,13.54775974]
[1739731897590,0.797,2679.3,2678.8,11.65938048]
[1739731897994,0.04824035,2679.2,2678.8,7.92646048]
[1739731898294,4.52944,2679.3,2678.8,7.92646048]
[1739731898591,0.04819326,2679.1,2678.8,4.48483974]
[1739731898889,3.73264,2679.1,2678.7,8.87]
[1739731899062,0.04814617,2679.0,2678.7,8.87]
[1739731899461,0.04814617,2679.0,2678.7,12.60313]
[1739731899689,3.73257,2679.2,2678.8,3.73298]
[1739731899878,3.73257,2679.2,2678.7,11.444464]
[1739731900073,0.04819326,2679.1,2678.7,15.177554]
[1739731900876,0.04819326,2679.1,2678.8,3.73294]
[1739731901188,3.73248,2679.2,2678.8,3.73294]
[1739731901485,0.04796337,2679.1,2678.7,15.177604]
[1739731901656,3.73248,2679.2,2678.7,15.177604]
[1739731901857,0.04796337,2679.1,2678.7,15.177604]
[1739731902359,3.78057337,2679.1,2678.7,6.307604]
[1739731902701,0.04796337,2679.1,2678.7,3.73314]
[1739731903077,0.04796337,2679.1,2678.8,3.73295]
[1739731903384,3.73246,2679.2,2678.7,3.73314]
[1739731903694,0.04796337,2679.1,2678.7,3.73314]
[1739731904480,3.78056337,2679.1,2678.7,3.73314]
[1739731905776,0.8192,2679.0,2678.7,3.73314]
[1739731905970,0.86708844,2679.0,2678.6,7.48842941]
[1739731906175,0.86708844,2679.0,2678.4,8.87]
[1739731906476,3.73294,2678.9,2678.4,5.92364477]
[1739731906911,0.04607687,2678.8,2678.5,3.73336]
[1739731907108,0.8192,2679.0,2678.5,3.73335]
[1739731907275,0.04602977,2678.7,2678.6,3.73324]
[1739731907607,4.55194,2679.0,2678.6,3.73324]
[1739731907908,4.55194,2679.0,2678.5,3.73333]
[1739731908109,0.04612397,2678.9,2678.5,5.144228]
[1739731908507,0.04612397,2678.9,2678.5,1.410898]
[1739731908711,0.04612397,2678.9,2678.5,5.144228]
[1739731908911,0.04612397,2678.9,2678.6,3.73328]
[1739731909109,0.8192,2678.6,2678.2,14.2]
[1739731909314,0.8192,2678.6,2678.2,6.19603277]
[1739731909513,0.04574021,2678.5,2678.2,3.73384]
[1739731909879,3.77924021,2678.5,2678.2,0.74415374]
[1739731910077,0.04574021,2678.5,2678.1,3.73397]
[1739731910512,0.04574021,2678.5,2678.3,3.73358]
[1739731910724,0.8192,2678.6,2678.3,3.73358]
[1739731911017,0.04577068,2678.4,2678.2,3.73381]
[1739731911175,0.8192,2678.6,2678.2,3.73381]
[1739731911373,0.04572356,2678.3,2678.2,3.73381]
[1739731911578,0.8192,2678.6,2678.2,3.73381]
[1739731911809,0.04572356,2678.3,2678.2,3.73381]
[1739731912029,0.8192,2678.6,2678.2,3.73381]
[1739731912196,0.04572356,2678.3,2678.2,3.73381]
[1739731912395,0.8192,2678.6,2678.2,3.73381]
[1739731912614,0.04572356,2678.3,2678.1,4.49382053]
[1739731912808,0.8192,2678.6,2678.1,4.49382053]
[1739731913002,4.55258,2678.6,2678.1,4.49382053]
[1739731913231,0.0458178,2678.5,2678.2,3.73384]
[1739731913425,0.0458178,2678.5,2678.2,3.73385]
[1739731913706,0.04577068,2678.4,2678.2,3.73385]
[1739731913890,4.55251,2678.6,2678.1,4.49383053]
[1739731914091,0.04572356,2678.3,2678.1,0.75991053]
[1739731914325,0.8192,2678.6,2678.1,0.75991053]
[1739731914524,0.8192,2678.6,2678.2,3.73385]
[1739731915293,4.55255,2678.6,2678.1,4.49389053]
[1739731915501,0.8192,2678.6,2678.1,0.75991053]
[1739731915707,0.8192,2678.6,2678.2,3.73382]
[1739731916046,0.8192,2678.6,2678.3,3.73361]
[1739731916223,0.8192,2678.6,2678.2,3.73382]
[1739731916696,0.811,2678.5,2678.2,3.73382]
[1739731918630,0.811,2678.5,2678.1,0.75991053]
[1739731918929,0.811,2678.5,2678.2,3.73384]
[1739731921825,0.811,2678.5,2678.2,3.73378]
[1739731922736,3.73357,2678.4,2677.9,8.33]
[1739731922904,0.811,2678.1,2677.9,5.33]
[1739731923604,0.04172389,2678.0,2677.9,6.07823098]
[1739731923803,0.04172389,2678.0,2677.9,0.74823098]
[1739731924134,0.811,2678.4,2678.1,3.73391]
[1739731924431,0.811,2678.4,2678.1,4.6315801]
[1739731924640,0.811,2678.4,2678.1,3.7339]
[1739731925342,0.811,2678.4,2678.2,3.73383]
[1739731925550,0.811,2678.4,2678.2,3.73378]
[1739731926309,0.04024944,2678.3,2678.2,3.73378]
[1739731926807,0.04024944,2678.3,2678.2,6.77111301]
[1739731927009,0.811,2678.8,2678.5,3.73334]
[1739731927212,0.811,2678.8,2678.3,6.60353769]
[1739731927562,0.03900633,2678.7,2678.3,3.73359]
[1739731927723,4.54402,2678.8,2678.3,3.73359]
[1739731927929,0.03895922,2678.6,2678.3,3.73359]
[1739731928125,4.54402,2678.8,2678.3,3.73359]
[1739731928326,0.03891211,2678.5,2678.2,5.33]
[1739731928657,0.811,2678.4,2678.2,5.33]
[1739731928814,4.54467,2678.4,2678.2,5.33]
[1739731929019,0.03873322,2678.3,2678.2,5.33]
[1739731931209,0.03873322,2678.3,2678.2,9.06385]
[1739731931414,0.8293,2678.7,2678.4,3.73348]
[1739731931613,4.56225,2678.9,2678.4,3.73348]
[1739731931846,0.03887457,2678.6,2678.4,3.73348]
[1739731932071,4.56225,2678.9,2678.5,3.73343]
[1739731932356,0.8293,2679.1,2678.7,3.73304]
[1739731932508,0.8293,2679.1,2678.8,3.73294]
[1739731932849,0.8293,2679.1,2678.7,3.73315]
[1739731933021,0.8293,2679.1,2678.7,4.46608697]
[1739731933226,0.8293,2679.1,2678.7,8.19914697]
[1739731933626,0.8293,2679.1,2678.7,4.46599697]
[1739731934355,0.8293,2679.1,2678.7,8.19905697]
[1739731934846,0.8293,2679.1,2678.7,4.46599697]
[1739731935447,0.8293,2679.5,2678.9,2.86994769]
[1739731935651,3.73231,2679.3,2679.0,0.03732529]
[1739731935824,0.8293,2678.9,2678.7,5.33]
[1739731936024,0.8293,2678.9,2678.4,5.33]
[1739731936345,3.73301,2678.8,2678.4,5.33]
[1739731936546,0.8293,2678.9,2678.4,9.06357]
[1739731936750,3.73303,2678.8,2678.4,5.33]
[1739731937048,0.8293,2678.6,2678.4,5.33]
[1739731937216,4.5627,2678.6,2678.4,5.33]
[1739731937947,3.73354,2678.5,2677.8,7.46863]
[1739731938148,0.8293,2678.5,2677.9,3.73425]
[1739731938317,3.73359,2678.4,2677.9,3.73425]
[1739731938517,4.56276,2678.5,2677.8,3.73428]
[1739731938845,0.8293,2678.5,2678.0,3.7341]
[1739731939358,0.8293,2678.5,2678.1,3.73397]
[1739731940440,0.8293,2678.9,2678.5,3.7333]
[1739731940840,0.8293,2679.2,2678.6,2.86994769]
[1739731941041,0.8293,2679.2,2678.7,4.10313477]
[1739731941354,0.8293,2679.2,2678.9,3.7328]
[1739731941652,4.56176,2679.2,2678.7,4.10313477]
[1739731941962,4.56176,2679.2,2678.7,3.73306]
[1739731942465,0.8293,2679.2,2678.7,3.73306]
[1739731942827,0.8293,2679.2,2678.8,3.73294]
[1739731943453,4.56177,2679.2,2678.7,3.73306]
[1739731945561,0.8293,2679.2,2678.7,3.73306]
[1739731945728,0.8293,2679.2,2678.7,4.57828527]
[1739731946240,4.56176,2679.2,2678.7,4.57828527]
[1739731946441,4.56176,2679.2,2678.7,3.73306]
[1739731947335,3.73261,2679.1,2678.7,3.73306]
[1739731947864,3.73261,2679.1,2678.6,7.34168267]
[1739731948383,3.73261,2679.1,2678.5,3.73333]
[1739731948664,3.73281,2679.0,2678.5,3.73333]
[1739731949252,3.73261,2679.1,2678.5,3.73333]
[1739731949654,3.73261,2679.1,2678.6,3.73322]
[1739731950171,0.7642,2679.0,2678.4,5.33]
[1739731950370,3.73259,2679.1,2678.4,5.33]
[1739731950545,3.73366,2678.4,2677.9,3.73415]
[1739731950745,0.7642,2678.3,2677.9,3.73415]
[1739731951752,0.7642,2678.3,2678.0,3.73409]
[1739731952058,0.7642,2678.7,2678.2,3.73385]
[1739731952245,4.49736,2678.7,2678.2,0.7761]
[1739731952451,4.49736,2678.7,2678.1,3.7339]
[1739731952651,3.73337,2678.6,2678.1,3.7339]
[1739731952876,4.49736,2678.7,2678.2,3.73381]
[1739731953037,4.49736,2678.7,2678.1,3.7339]
[1739731953239,8.680346,2678.7,2678.1,3.73389]
[1739731953774,8.680346,2678.7,2678.1,7.4678]
[1739731953973,8.680346,2678.7,2678.2,3.73384]
[1739731953974,4.947096,2678.7,2678.2,3.73384]
[1739731954173,4.49736,2678.7,2678.2,3.73384]
[1739731954354,3.73329,2678.6,2678.1,3.73389]
[1739731954553,3.73329,2678.6,2678.1,7.4678]
[1739731954743,3.73329,2678.6,2678.1,3.73389]
[1739731954945,3.73329,2678.6,2678.1,7.46779]
[1739731955172,3.73329,2678.6,2678.1,3.73389]
[1739731955380,0.7642,2678.7,2678.3,3.73368]
[1739731956154,3.73331,2678.6,2678.1,3.73389]
[1739731956343,0.7642,2678.5,2678.1,3.73389]
[1739731956541,4.49764,2678.5,2678.1,3.73389]
[1739731956865,3.73382,2678.3,2677.8,9.06433]
[1739731957063,3.73357,2678.4,2677.9,6.26568277]
[1739731958360,3.73357,2678.4,2677.9,2.53148277]
[1739731958679,3.73378,2678.3,2677.9,2.53148277]
[1739731958979,3.73357,2678.4,2677.9,2.53148277]
[1739731959183,3.73357,2678.4,2677.9,6.26571277]
[1739731959980,7.46724,2678.4,2677.9,6.26571277]
[1739731960379,3.73357,2678.4,2677.9,6.26571277]
[1739731960942,3.73373,2678.3,2677.9,2.53148277]
[1739731961342,3.73357,2678.4,2677.9,6.26574277]
[1739731962086,3.73357,2678.4,2677.9,2.53148277]
[1739731962489,3.73371,2678.3,2677.9,6.26573277]
[1739731962648,3.73371,2678.3,2677.9,2.53148277]
[1739731962993,0.7583,2678.2,2677.8,5.33]
[1739731963149,3.73426,2677.9,2677.8,5.33]
[1739731963501,3.7345,2677.8,2677.3,3.73504]
[1739731963962,3.73455,2677.7,2677.3,3.73504]
[1739731964161,4.49256,2677.9,2677.3,3.73504]
[1739731964384,4.49256,2677.9,2677.4,4.46928787]
[1739731965081,4.49256,2677.9,2677.4,0.73439787]
[1739731965287,0.7583,2677.9,2677.4,0.73439787]
[1739731965464,3.73462,2677.7,2677.4,0.73439787]
[1739731966582,3.73482,2677.5,2677.4,0.73439787]
[1739731966782,0.7583,2677.6,2676.9,9.06558]
[1739731966984,0.7583,2677.2,2676.9,5.33]
[1739731967282,3.73467,2677.7,2677.0,3.73544]
[1739731967283,0.7583,2677.6,2677.0,3.73544]
[1739731967481,0.7583,2677.6,2677.1,6.64259049]
[1739731967687,3.18905162,2678.3,2677.5,3.73482]
[1739731967688,0.7583,2678.0,2677.5,3.73482]
[1739731967847,0.7583,2678.0,2677.6,3.73456]
[1739731968361,0.7583,2678.0,2677.5,7.46955]
[1739731968565,0.7583,2678.0,2677.5,8.58507977]
[1739731969859,0.7583,2678.2,2677.6,0.03734348]
[1739731970184,0.7583,2678.2,2677.7,3.73444]
[1739731970385,0.7583,2678.2,2677.8,3.73438]
[1739731970572,0.7583,2678.4,2677.8,5.6605913]
[1739731970777,0.7583,2678.4,2677.9,3.73418]
[1739731971085,0.7583,2678.4,2677.9,3.73414]
[1739731971388,0.7583,2678.4,2678.0,3.73412]
[1739731971686,4.49199,2678.4,2677.8,10.9905913]
[1739731972082,4.49199,2678.4,2677.8,10.9905313]
[1739731972384,4.49199,2678.4,2677.8,14.7248513]
[1739731972559,4.49199,2678.4,2677.9,3.73422]
[1739731975774,4.49196,2678.4,2677.9,7.46831]
[1739731976193,4.49196,2678.4,2677.9,3.73414]
[1739731976562,4.49196,2678.4,2677.9,7.46833]
[1739731976762,4.49196,2678.4,2678.0,3.73412]
[1739731977082,0.7583,2678.4,2678.0,3.73412]
[1739731977796,4.49192,2678.4,2677.9,3.73414]
[1739731977965,0.7909,2678.3,2677.9,3.73414]
[1739731978374,0.7909,2678.3,2677.9,7.46833]
[1739731979389,0.7909,2678.3,2677.9,3.73414]
[1739731979800,4.52463,2678.3,2677.9,3.73414]
[1739731980292,0.7909,2678.3,2677.9,3.73414]
[1739731980493,0.7909,2678.3,2677.9,5.0040733]
[1739731980885,0.7909,2678.3,2677.8,5.33]
[1739731981084,3.73419,2678.0,2677.4,6.60477769]
[1739731981396,3.73429,2677.9,2677.4,6.60477769]
[1739731981599,3.73419,2678.0,2677.5,3.73471]
[1739731982762,3.73419,2678.0,2677.5,7.46946]
[1739731982962,0.7909,2678.1,2677.7,3.73452]
[1739731983457,0.7909,2678.1,2677.8,3.73428]
[1739731983565,0.7909,2678.3,2678.0,3.7341]
[1739731983765,0.7909,2678.3,2678.0,3.73406]
[1739731983989,0.7909,2678.3,2678.0,3.73405]
[1739731984462,0.7909,2678.6,2678.2,3.73375]
[1739731984905,0.7909,2678.6,2678.0,3.73403]
[1739731985063,3.73343,2678.5,2678.0,3.73403]
[1739731985263,0.7909,2678.6,2678.0,3.73403]
[1739731985500,0.7909,2678.6,2678.1,3.7339]
[1739731985672,0.7909,2678.5,2677.8,5.33]
[1739731985997,4.52483,2678.2,2677.8,5.33]
[1739731986374,4.52483,2678.2,2677.8,9.06438]
[1739731986573,0.7909,2678.2,2677.9,3.73415]
[1739731986878,0.7909,2678.2,2677.9,6.18799177]
[1739731987275,0.7909,2678.2,2677.9,2.45384177]
[1739731987477,0.7909,2678.2,2677.8,9.06432]
[1739731987709,0.7909,2678.2,2677.9,3.73416]
[1739731988612,0.7909,2678.2,2677.8,3.7344]
[1739731988793,4.56033,2678.1,2677.6,3.73455]
[1739731988992,4.56035,2678.1,2677.6,3.73461]
[1739731989205,3.7342,2678.0,2677.5,5.33]